[Event "Festival Groningen-A 2024"]
[Site "Groningen"]
[Date "2024.12.22"]
[Round "2.7"]
[White "Kollen, Zyon"]
[Black "Albers, Sasa"]
[Result "0-1"]
[ECO "B12"]
[WhiteElo "2344"]
[BlackElo "2268"]
[Annotator "TA"]
[PlyCount "88"]
[EventDate "2024.12.21"]
[EventType "swiss"]
[EventCountry "NED"]
[SourceTitle "playchess.com"]
[Source "ChessBase"]
[SourceQuality "1"]
[TimeControl "40/5400+30:1800+30"]

{[%evp 12,87,18,0,29,-5,-13,-6,0,-2,-11,-5,0,0,41,44,29,14,22,11,0,0,47,19,14,13,22,0,31,17,22,14,23,14,18,24,50,0,36,-50,-52,-40,-8,-8,-10,-10,-11,-33,-17,0,0,-1,0,0,0,-43,-44,-58,0,0,0,0,0,0,0,0,0,0,0,-805,0,-29996,-29997,-29997,-29998,-29998,-29999,-29999]} 1. e4 {[%emt 0:00:04]} c6 {[%emt 0:00:03][%cal Bc7c6,Bc6c5][%mdl 32]} 2. d4 {[%emt 0:00:06]} d5 {[%emt 0:00:03]} 3. e5 {[%emt 0:00:05]} Bf5 {[%emt 0:00:25]} 4. Nf3 {[%emt 0:00:14]} e6 {[%emt 0:00:06]} 5. Be2 {[%emt 0:00:16]} c5 {[%emt 0:00:19]} 6. O-O {[%emt 0:01:09]} Nc6 {[%emt 0:00:35]} 7. c3 {[%emt 0:00:38]} a6 {[%emt 0:00:34]} 8. b3 {[%emt 0:11:50]} cxd4 {[%emt 0:07:17]} 9. Nxd4 {[%emt 0:02:30]} Nge7 {[%emt 0:02:06][%cal Bg8e7,Be7f5,Bf5h4,Bh4f3][%mdl 32]} 10. Nxf5 {[%emt 0:07:23]} Nxf5 {[%emt 0:00:07]} 11. Bd3 {[%emt 0:00:58]} g6 {[%emt 0:00:51]} 12. Re1 {[%emt 0:04:43]} Bc5 {[%emt 0:09:28]} 13. Nd2 {[%emt 0:11:58]} Rc8 {[%emt 0:13:43]} 14. Nf3 {[%emt 0:03:18]} (14. b4 {simplifies} Be7 15. a3 O-O 16. Nf3) 14... Nh4 {[%emt 0:06:07]} 15. g3 {[%emt 0:05:26]} (15. Nxh4 Qxh4 16. g3 Qh3 17. Qf3) 15... Nxf3+ {[%emt 0:00:48]} 16. Qxf3 {[%emt 0:00:02]} Qc7 {[%emt 0:10:54]} (16... O-O $11) 17. Bf4 {[%emt 0:15:29]} (17. Qf6 {is more complex.} Rg8 18. Bh6 Be7 19. Qf4) 17... Bf8 {[%emt 0:05:15]} 18. h4 {[%emt 0:03:53]} Bg7 {[%emt 0:01:29][%cal Rg7e5]} 19. Qe3 {[%emt 0:03:06][%cal Oh4h5]} h6 {[%emt 0:07:20][%cal Og6g5]} 20. Rac1 {[%emt 0:03:53]} Qa5 {[%emt 0:09:15]} 21. a4 {[%emt 0:04:32]} g5 {[%emt 0:02:11]} 22. hxg5 {[%emt 0:00:14]} hxg5 {[%emt 0:00:01]} 23. Bxg5 {[%emt 0:00:07][%cal Bf4g5,Bg5e3,Be3d4][%mdl 32]} Nxe5 {[%emt 0:00:22][%cal Od5d4]} 24. Be2 {[%emt 0:05:07]} (24. Bf1 $14) 24... Qc5 {[%emt 0:02:15]} 25. Qd2 {[%emt 0:04:26]} (25. Qxc5 $14 Rxc5 26. Be3) 25... Qc6 $1 $15 {[%emt 0:01:12][%cal Od5d4]} 26. f3 $1 {[%emt 0:02:06]} Qb6+ {[%emt 0:11:45]} 27. Be3 $132 {[%emt 0:01:12][%mdl 2048] White has counterplay} Qxb3 {[%emt 0:01:21][%cal Oe5c4]} 28. Bd4 $1 {[%emt 0:00:57]} Rg8 $1 {[%emt 0:00:18]} (28... Qxa4 $2 29. Bd1 (29. f4 Nc4 $14) 29... Qa3 30. Bxe5 Bxe5 31. Rxe5 $18) 29. Kg2 {[%emt 0:04:23]} Ng6 {[%emt 0:03:12]} (29... Qxa4 $2 30. Bd1 Qc4 31. Rxe5 (31. Bxe5 Bxe5 32. Rxe5 Qh4 $18) 31... Bxe5 32. Bxe5 $18) (29... Qa3 $5) 30. Rb1 {[%emt 0:01:55]} Qxa4 {[%emt 0:00:09] ...Bxd4 would now be deadly.} 31. Rxb7 {[%emt 0:00:40]} Bxd4 {[%emt 0:00:29]} 32. cxd4 {[%emt 0:00:13]} Nh4+ {[%emt 0:00:54]} 33. Kf1 {[%emt 0:03:10]} Nf5 {[%emt 0:00:01]} (33... Rxg3 $2 34. Qh6 Ng6 (34... Nxf3 35. Qh8+) (34... Qxd4 35. Bb5+ axb5 36. Rxe6+ fxe6 37. Qxe6+ Kf8 38. Qxc8#) 35. Qg7 $18) 34. Rc1 $1 {[%emt 0:00:38][%cal Rc1c8]} Nxg3+ {[%emt 0:04:25]} (34... Qxd4 35. Rxc8#) (34... Rd8 $1 $15 35. g4 Qxd4 (35... Nxd4 $2 36. Qf4 $18) 36. Qxd4 Nxd4) 35. Ke1 $1 $11 {[%emt 0:00:16][%cal Rc1c8]} Rxc1+ {[%emt 0:01:00]} 36. Qxc1 {[%emt 0:00:02][%cal Rc1c8]} Qa5+ {[%emt 0:00:13]} (36... Qxd4 37. Qc8#) 37. Kd1 {[%emt 0:01:21] Threatens to win with Qc6+.} Qa4+ $1 {[%emt 0:00:18]} 38. Ke1 {[%emt 0:00:04][%cal Rc1c8]} Qa5+ {[%emt 0:00:02]} (38... Qxd4 39. Qc8#) 39. Kf2 {[%emt 0:00:18] White wants to mate with Qc6+.} Qd8 $1 {[%emt 0:00:01]} ({Wrong is} 39... Nxe2 $2 40. Qc6+ Kf8 41. Qd6+ (41. Qd7 Rg2+ 42. Kxg2 Nf4+ 43. Kg3 Qe1+ 44. Kxf4 Qh4+ 45. Ke5 Qg3+ 46. f4 Qe3+ 47. Kd6 Qxf4+ 48. Kc5 Qc1+ 49. Kb6 Qf4 $18) 41... Kg7 42. Qe7 $18 (42. Qxe6 Rf8 $11)) 40. Qb1 $2 {[%emt 0:01:13][%mdl 8192] [#] Prevents Ne4+} (40. Qc6+ $11 Kf8 41. Qc5+ Kg7 (41... Ke8 42. Bb5+ axb5 43. Qxb5+ Kf8 44. Rb8 $18) 42. Kxg3) 40... Ne4+ $2 {[%emt 0:03:01]} (40... Qh4 $1 $19 {[%mdl 512] ( -> ...Nf5+)} 41. Rb8+ (41. Ke3 Nf5+) 41... Ke7 42. Rxg8 Qh2+ (42... Qxd4+ $2 {too greedy.} 43. Kxg3 Qe5+ 44. f4 $18) 43. Ke3 Qxe2+ 44. Kf4 Nf5 (44... Nh5+ $2 45. Kg5 $19)) 41. Ke3 $2 {[%emt 0:05:40][%mdl 8192]} (41. fxe4 $11 Qh4+ 42. Ke3 Rg3+ 43. Bf3) 41... Qg5+ {[%emt 0:01:23]} 42. f4 {[%emt 0:00:11]} Qg3+ {[%emt 0:00:13]} 43. Bf3 {[%emt 0:00:07]} Qf2+ {[%emt 0:00:09]} 44. Kd3 {[%emt 0:00:04]} Qd2# {[%emt 0:30:50]} 0-1

[Event "Festival Groningen-A 2024"]
[Site "Groningen"]
[Date "2024.12.22"]
[Round "2.8"]
[White "Schilstra, Laurens"]
[Black "Labruyere, Roger"]
[Result "0-1"]
[ECO "B66"]
[WhiteElo "2150"]
[BlackElo "2344"]
[Annotator "TA"]
[PlyCount "84"]
[EventDate "2024.12.21"]
[EventType "swiss"]
[EventCountry "NED"]
[SourceTitle "playchess.com"]
[Source "ChessBase"]
[SourceQuality "1"]
[TimeControl "40/5400+30:1800+30"]

{[%evp 19,84,8,10,19,14,30,0,0,0,4,64,8,27,18,33,29,47,43,206,44,50,60,44,0,4,0,0,0,0,25,16,-29,8,7,7,14,112,9,44,-176,-136,-151,-41,-606,-599,-560,-595,-635,-614,-640,-573,-2364,-2671,-2606,-2632,-29979,-29980,-29979,-29980,-29987,-29988,-29994,-933,-1647,-1625,-1490,-1379]} 1. e4 {[%emt 0:00:03]} c5 {[%emt 0:00:40]} 2. Nf3 {[%emt 0:00:09]} d6 {[%emt 0:00:04]} 3. d4 {[%emt 0:00:07]} cxd4 {[%emt 0:00:03]} 4. Nxd4 {[%emt 0:00:10]} Nf6 {[%emt 0:00:04]} 5. Nc3 {[%emt 0:00:05]} a6 {[%emt 0:00:03]} 6. Bg5 {[%emt 0:00:06]} e6 {[%emt 0:00:50]} 7. f4 {[%emt 0:00:07]} h6 {[%emt 0:00:57]} 8. Bxf6 {[%emt 0:00:11]} Qxf6 {[%emt 0:00:32]} 9. Qd2 {[%emt 0:00:07]} Nc6 {[%emt 0:03:10]} 10. Nxc6 {[%emt 0:00:35]} bxc6 {[%emt 0:00:32] Black is weak on the light squares} 11. O-O-O {[%emt 0:00:07][%cal Oe4e5]} Qd8 {[%emt 0:00:29]} 12. Bc4 {[%emt 0:00:09]} Be7 {[%emt 0:00:54][%cal Bf8e7,Be7f6,Bf6d4][%mdl 32]} 13. Kb1 {[%emt 0:02:21]} O-O {[%emt 0:04:51]} 14. Bb3 {[%emt 0:01:05][%cal Oh2h4]} Qc7 {[%emt 0:03:42]} (14... d5 $11) 15. Rhf1 {[%emt 0:10:05]} (15. h4 $14) 15... c5 {[%emt 0:03:01]} 16. Bc4 {[%emt 0:01:37]} Rb8 {[%emt 0:05:46]} 17. b3 {[%emt 0:11:09]} Bf6 {[%emt 0:11:46]} 18. g4 {[%emt 0:11:36]} Qb7 $2 {[%emt 0:05:33]} ({Black should play} 18... Bd4 $14) 19. Na4 $2 {[%emt 0:09:20]} (19. e5 $18 dxe5 20. g5 hxg5 (20... Rd8 $2 21. Qxd8+ Bxd8 22. Rxd8+ Kh7 23. Bd3+ g6 24. Ne4 $18) 21. fxg5) 19... Bd4 {[%emt 0:25:17]} 20. c3 {[%emt 0:23:57]} Bf6 {[%emt 0:05:34]} 21. Qxd6 {[%emt 0:02:43]} Rd8 $1 {[%emt 0:00:10]} 22. Qxd8+ {[%emt 0:06:07]} (22. Qxc5 Qxe4+ 23. Ka1 Rxd1+ 24. Rxd1 Qxf4 $19) 22... Bxd8 {[%emt 0:00:08]} 23. Rxd8+ {[%emt 0:00:05]} Kh7 {[%emt 0:00:06]} 24. e5 {[%emt 0:00:19][%cal Oh2h4]} (24. Nxc5 $2 Qc7 25. Rfd1 Qxc5 $19) 24... g6 {[%emt 0:03:27][%cal Bg7g6,Bg6g5][%mdl 32]} 25. Kb2 {[%emt 0:06:02][%cal Of1f2]} (25. Nxc5 $2 Qc7 26. Rfd1 Qxc5 $19) 25... a5 {[%emt 0:11:28][%mdl 1024] Black has compensation.} (25... Bd7 $5 26. Rxb8 (26. Nxc5 $2 Qg2+ 27. Ka3 Rxd8 $19) 26... Qxb8 27. Nxc5 Bb5 $19) 26. Ka3 {[%emt 0:02:52][%cal Of1d1]} (26. Nxc5 $2 Qc7 27. Rd4 Qxc5 $19) 26... Qc7 {[%emt 0:07:46]} 27. Rfd1 {[%emt 0:00:33]} Kg7 {[%emt 0:00:45]} (27... g5 $1 $11) 28. R1d6 {[%emt 0:02:42]} (28. h4 $1 $16) 28... g5 $11 {[%emt 0:03:24] [#]} 29. f5 $2 {[%emt 0:03:27]} exf5 $19 {[%emt 0:00:05]} 30. Re8 {[%emt 0:01:49] [#] Black must now prevent Rdd8.} Be6 $1 $36 {[%emt 0:01:09][%mdl 2048] Black is pushing. Dancing on a razor blade.} (30... fxg4 31. Rdd8 Kg6 32. Rf8 $14) 31. Bxe6 $2 {[%emt 0:01:12][%mdl 8192]} (31. Rxb8 $15 Qxb8 32. Bxe6 fxe6 33. Nxc5 fxg4 34. Nxe6+ Kh7 35. Nc5) 31... Rxe8 {[%emt 0:00:39]} 32. Rd7 {[%emt 0:00:04]} Qxe5 {[%emt 0:00:41]} 33. Rxf7+ {[%emt 0:00:03]} Kh8 {[%emt 0:00:40]} 34. gxf5 {[%emt 0:00:10]} Qe3 {[%emt 0:00:56] and ...Qc1+ would now be decisive} 35. Rf6 {[%emt 0:02:45]} Qc1+ {[%emt 0:00:52]} 36. Nb2 {[%emt 0:00:04]} Qxc3 {[%emt 0:00:10][%csl Ga5,Gc5][%cal Rc3b4]} 37. Rxh6+ {[%emt 0:00:08]} Kg7 {[%emt 0:00:03][%csl Ga5,Gc5][%cal Rc3b4]} 38. Rg6+ {[%emt 0:00:10]} Kh7 {[%emt 0:00:04][%csl Ga5,Gc5][%cal Rc3b4]} 39. Nc4 {[%emt 0:00:53] [#]} a4 $1 {[%emt 0:00:48]} 40. Nb6 {[%emt 0:02:54]} (40. Bg8+ Rxg8) 40... Qb4+ {[%emt 0:01:02]} (40... axb3 $142 41. Na4 Qb4+ (41... Ra8 42. Bg8+ Kh8 43. Rh6+ Kxg8 44. Rg6+ Kh7 45. Rg7+ Kxg7 46. f6+ Kh8 47. axb3 Qa1#) 42. Kb2 Qd2+ (42... Qxa4 43. axb3 Qd4+ 44. Kc2 Rd8 45. Bg8+ Kh8 46. Bd5 Qxd5 47. Rh6+ Kg8 48. Rg6+ Kh7 49. Rg7+ Kxg7 50. Kb2 Qd2+ 51. Kb1 Qe1+ 52. Kb2 Rd2+ 53. Kc3 Qc1#) 43. Kxb3 Rb8+ (43... Qxh2 $2 44. Nxc5 Rb8+ 45. Kc3 $19) 44. Nb6 Rxb6+ 45. Kc4 Qd4#) 41. Kb2 {[%emt 0:30:18]} a3+ {[%emt 0:30:36]} (41... Qxb6 42. Bg8+ (42. Rxg5 $2 Qd8 $19) 42... Rxg8 43. Rxb6 $16) 42. Kc2 {[%emt 0:00:37]} Qe4+ {[%emt 0:00:11]} ({Not} 42... Qxb6 43. Bg8+ (43. Rxg5 $2 {is the wrong capture.} Qb4 $19) 43... Rxg8 44. Rxb6 $11) 0-1

[Event "Festival Groningen-A 2024"]
[Site "Groningen"]
[Date "2024.12.22"]
[Round "2.9"]
[White "Dolzhykova, Kateryna"]
[Black "Weber, Samuel"]
[Result "1/2-1/2"]
[ECO "D85"]
[WhiteElo "2322"]
[BlackElo "2263"]
[Annotator "RC"]
[PlyCount "50"]
[EventDate "2024.12.21"]
[EventType "swiss"]
[EventCountry "NED"]
[SourceTitle "playchess.com"]
[Source "ChessBase"]
[SourceQuality "1"]
[TimeControl "40/5400+30:1800+30"]

1. d4 {[%emt 0:00:04]} Nf6 {[%emt 0:00:14]} 2. c4 {[%emt 0:00:05]} g6 {[%emt 0:00:06]} 3. Nc3 {[%emt 0:00:07]} d5 {[%emt 0:00:20]} 4. cxd5 {[%emt 0:00:08]} Nxd5 {[%emt 0:00:06]} 5. e4 {[%emt 0:00:06]} Nxc3 {[%emt 0:00:06]} 6. bxc3 {[%emt 0:00:05]} Bg7 {[%emt 0:00:09]} 7. h4 {[%emt 0:00:16]} c5 {[%emt 0:01:02]} 8. Bc4 {[%emt 0:00:22]} cxd4 {[%emt 0:00:38]} 9. cxd4 {[%emt 0:00:08]} Bxd4 {[%emt 0:00:15]} 10. Bh6 {[%emt 0:00:14]} Bxa1 {[%emt 0:00:46]} 11. Qxa1 {[%emt 0:00:07]} Rg8 {[%emt 0:01:08]} 12. Nf3 {[%emt 0:00:49]} Nc6 {[%emt 0:01:47]} 13. O-O {[%emt 0:00:23]} Be6 {[%emt 0:02:30]} 14. Bxe6 {[%emt 0:00:42]} fxe6 {[%emt 0:00:10]} 15. Rd1 {[%emt 0:00:03]} Qa5 {[%emt 0:00:47]} 16. Ng5 {[%emt 0:00:32]} Nd8 {[%emt 0:01:35]} 17. Nxh7 {[%emt 1:34:49]} Qb4 {[%emt 0:00:55]} 18. Bf8 {[%emt 0:00:00]} Nf7 {[%emt 0:01:09]} 19. Bxe7 {[%emt 0:00:00]} Kxe7 {[%emt 0:00:57]} 20. Qf6+ {[%emt 0:00:00]} Ke8 {[%emt 0:00:07]} 21. Qxe6+ {[%emt 0:00:00]} Qe7 {[%emt 0:00:07]} 22. Nf6+ {[%emt 0:00:00]} Kf8 {[%emt 0:00:06]} 23. Nh7+ {[%emt 0:00:00]} Ke8 {[%emt 0:00:05]} 24. Nf6+ {[%emt 0:00:00]} Kf8 {[%emt 0:00:07]} 25. Nh7+ {[%emt 0:00:00]} Ke8 {[%emt 0:00:06]} 1/2-1/2

[Event "Festival Groningen-A 2024"]
[Site "Groningen"]
[Date "2024.12.22"]
[Round "2.10"]
[White "Ten Dam, Bram"]
[Black "Elgersma, Onno"]
[Result "0-1"]
[ECO "C02"]
[WhiteElo "2002"]
[BlackElo "2322"]
[Annotator "RC"]
[PlyCount "50"]
[EventDate "2024.12.21"]
[EventType "swiss"]
[EventCountry "NED"]
[SourceTitle "playchess.com"]
[Source "ChessBase"]
[SourceQuality "1"]
[TimeControl "40/5400+30:1800+30"]

1. e4 {[%emt 0:00:03]} e6 {[%emt 0:03:10]} 2. d4 {[%emt 0:00:07]} d5 {[%emt 0:00:04]} 3. e5 {[%emt 0:00:03]} c5 {[%emt 0:00:06]} 4. c3 {[%emt 0:00:04]} Qa5 {[%emt 0:00:06]} 5. dxc5 {[%emt 0:15:25]} Qc7 {[%emt 0:00:23]} 6. Nf3 {[%emt 0:00:18]} Bxc5 {[%emt 0:00:27]} 7. Bd3 {[%emt 0:03:03]} Ne7 {[%emt 0:03:13]} 8. O-O {[%emt 0:01:39]} Ng6 {[%emt 0:04:58]} 9. Re1 {[%emt 0:00:41]} O-O {[%emt 0:19:09]} 10. h4 {[%emt 0:08:40]} Nc6 {[%emt 0:11:21]} 11. Qe2 {[%emt 0:11:43]} f6 {[%emt 0:02:27]} 12. exf6 {[%emt 0:13:51]} Rxf6 {[%emt 0:01:48]} 13. Bxg6 {[%emt 0:04:05]} Rxg6 {[%emt 0:06:20]} 14. Be3 {[%emt 0:12:30]} Bxe3 {[%emt 0:05:22]} 15. Qxe3 {[%emt 0:02:08]} Bd7 {[%emt 0:00:24]} 16. Nbd2 {[%emt 0:01:52]} Rf8 {[%emt 0:00:40]} 17. Rad1 {[%emt 0:01:12]} Rf4 {[%emt 0:01:41]} 18. h5 {[%emt 0:07:44]} Rh6 {[%emt 0:05:23]} 19. g3 {[%emt 0:01:24]} Rf5 {[%emt 0:03:43]} 20. Nb3 {[%emt 0:02:21]} Rfxh5 {[%emt 0:01:03]} 21. Kg2 {[%emt 0:01:38]} e5 {[%emt 0:05:35]} 22. Rxd5 {[%emt 0:01:56]} Bh3+ {[%emt 0:00:36]} 23. Kg1 {[%emt 0:00:07]} Be6 {[%emt 0:00:10]} 24. Rd2 {[%emt 0:01:22]} Qc8 {[%emt 0:01:00]} 25. Kg2 {[%emt 0:02:12]} Bxb3 {[%emt 0:02:32]} 0-1

[Event "Festival Groningen-A 2024"]
[Site "Groningen"]
[Date "2024.12.22"]
[Round "2.11"]
[White "Kazakouski, Valery"]
[Black "Groenewoud, Joel"]
[Result "1-0"]
[ECO "E90"]
[WhiteElo "2567"]
[BlackElo "2058"]
[Annotator "TA"]
[PlyCount "99"]
[EventDate "2024.12.21"]
[EventType "swiss"]
[EventCountry "NED"]
[SourceTitle "playchess.com"]
[Source "ChessBase"]
[SourceQuality "1"]
[TimeControl "40/5400+30:1800+30"]

{[%evp 20,99,56,56,79,81,81,80,89,34,72,61,69,51,38,38,45,48,52,33,53,47,52,45,70,64,56,54,47,52,43,42,53,40,41,23,44,47,53,44,39,30,51,8,4,-72,-57,-77,0,-10,0,0,0,0,0,0,0,0,15,0,52,77,66,73,71,70,96,91,127,104,191,68,235,227,328,312,279,208,518,511,1258,842]} 1. d4 {[%emt 0:00:04]} Nf6 {[%emt 0:00:05]} 2. c4 {[%emt 0:00:07]} g6 {[%emt 0:00:04]} 3. Nc3 {[%emt 0:00:06]} Bg7 {[%emt 0:00:04]} 4. e4 {[%emt 0:00:08]} d6 {[%emt 0:00:04]} 5. Nf3 {[%emt 0:00:08]} O-O {[%emt 0:00:05]} 6. Be2 {[%emt 0:00:07]} e5 {[%emt 0:00:06]} 7. d5 {[%emt 0:00:06]} a5 {[%emt 0:00:16]} 8. h3 {[%emt 0:00:07][%cal Bh2h3,Bh3h4,Bh4h5][%mdl 32]} Na6 {[%emt 0:00:45]} 9. Bg5 {[%emt 0:00:16]} Qe8 {[%emt 0:01:59]} 10. g4 {[%emt 0:00:25][%cal Bg2g4,Bg4g5][%mdl 32]} Nc5 {[%emt 0:03:27]} 11. Nd2 {[%emt 0:01:00]} Bd7 {[%emt 0:01:51]} 12. Be3 {[%emt 0:04:41]} Qd8 {[%emt 0:15:58]} 13. h4 {[%emt 0:07:39]} c6 {[%emt 0:04:54] White is better.} 14. Rg1 {[%emt 0:13:23]} (14. h5 $16) 14... Rb8 {[%emt 0:19:19]} 15. g5 {[%emt 0:12:01]} Ne8 {[%emt 0:00:29]} 16. Nb3 {[%emt 0:00:08]} b6 {[%emt 0:04:26][%cal Bb7b6,Bb6c5][%mdl 32]} 17. h5 {[%emt 0:03:04]} Nc7 {[%emt 0:03:56]} 18. a4 {[%emt 0:12:01]} N7a6 {[%emt 0:03:40]} 19. Rg3 {[%emt 0:00:49]} Nb4 {[%emt 0:03:22]} 20. Nxc5 {[%emt 0:01:11]} bxc5 {[%emt 0:00:22]} 21. Rb1 {[%emt 0:03:50]} Qe7 {[%emt 0:01:33]} 22. Kd2 $1 {[%emt 0:01:31]} Rb7 {[%emt 0:01:19]} 23. b3 {[%emt 0:04:23]} Rfb8 {[%emt 0:00:24]} 24. hxg6 {[%emt 0:00:36]} fxg6 {[%emt 0:00:34]} 25. Bg4 {[%emt 0:05:31]} Bxg4 {[%emt 0:03:30]} 26. Rxg4 {[%emt 0:03:05]} Qf7 {[%emt 0:00:46]} 27. Rg1 {[%emt 0:05:11]} Bh8 {[%emt 0:00:40]} 28. Qg4 {[%emt 0:00:42]} Qe7 {[%emt 0:02:06]} 29. Rgd1 {[%emt 0:00:35]} Bg7 {[%emt 0:03:31]} 30. Ke2 {[%emt 0:01:09]} cxd5 {[%emt 0:02:36]} 31. exd5 {[%emt 0:03:10]} Nc2 {[%emt 0:01:28]} 32. Nb5 {[%emt 0:05:10]} (32. Qe6+ $11 Qxe6 33. dxe6 Nd4+ 34. Bxd4 exd4 35. Nd5) 32... Nd4+ $17 {[%emt 0:01:58]} 33. Kd3 {[%emt 0:03:02][%cal Re3d4]} ({Of course not} 33. Bxd4 exd4+ 34. Kd3 Rf8 $17) 33... Nf5 {[%emt 0:01:24]} (33... Qf8 $17) 34. Bd2 $11 {[%emt 0:01:18]} Re8 {[%emt 0:04:04]} 35. Re1 {[%emt 0:02:08] Active counter play!} Qd8 {[%emt 0:00:34]} 36. Re4 {[%emt 0:01:35]} Rf8 {[%emt 0:01:23]} 37. Rh1 {[%emt 0:02:30]} Rff7 {[%emt 0:04:07]} 38. Qh3 {[%emt 0:01:40]} Bf8 {[%emt 0:01:29]} 39. f4 {[%emt 0:02:06]} exf4 {[%emt 0:01:48]} (39... Nd4 $11) 40. Bxf4 {[%emt 0:00:53]} Rfe7 {[%emt 0:08:30]} 41. Rhe1 $36 {[%emt 0:05:31][%mdl 2048] White is really pushing.} Rxe4 {[%emt 0:04:24]} 42. Rxe4 {[%emt 0:00:08]} Rf7 {[%emt 0:00:59]} 43. Qg4 {[%emt 0:03:25]} Ng7 {[%emt 0:04:34]} 44. Bd2 {[%emt 0:02:06]} Rf5 {[%emt 0:06:04]} (44... Be7 $16 45. Re2 Rf5) 45. Qe2 {[%emt 0:00:57]} (45. Kc2 $18) 45... Kf7 $2 {[%emt 0:08:40] [#] This move loses the game for Black.} (45... Rxg5 $1 $14 46. Bxg5 Qxg5) 46. Kc2 $18 {[%emt 0:03:06]} Qd7 {[%emt 0:02:12]} (46... Rxg5 $142 47. Bxg5 Qxg5) 47. Bxa5 {[%emt 0:02:53]} Rxg5 {[%emt 0:00:33]} 48. Bd2 {[%emt 0:00:48]} Rg3 {[%emt 0:03:54]} (48... Rf5 49. a5 Kg8) 49. a5 {[%emt 0:01:56]} Qb7 {[%emt 0:00:58]} (49... Nf5 $142 50. a6 Qc8) 50. Bf4 {[%emt 0:01:29] Weighted Error Value: White=0.12 (very precise) /Black=0.29 (precise) .  Loses game:     	---       	Black=1      Mistake:       	White=3     	Black=6      Inaccurate:     	White=2     	Black=3      OK:         	White=16    	Black=7      Best:        	White=2     	Black=2      Strong:       	White=1     	---} 1-0

[Event "Festival Groningen-A 2024"]
[Site "Groningen"]
[Date "2024.12.22"]
[Round "2.12"]
[White "Vijayakumar, Rishi"]
[Black "Schoppen, Casper"]
[Result "0-1"]
[ECO "E71"]
[WhiteElo "2204"]
[BlackElo "2539"]
[Annotator "TA"]
[PlyCount "94"]
[EventDate "2024.12.21"]
[EventType "swiss"]
[EventCountry "NED"]
[SourceTitle "playchess.com"]
[Source "ChessBase"]
[SourceQuality "1"]
[TimeControl "40/5400+30:1800+30"]

{[%evp 9,94,35,62,28,30,25,22,41,38,43,41,39,54,49,51,50,55,0,75,60,100,97,96,70,59,0,0,0,30,0,0,-92,-102,-195,-155,-235,-228,-262,-274,-274,-265,-264,-269,-266,-262,-272,-260,-282,-280,-276,-283,-277,-281,-280,-289,-292,-298,-285,-284,-321,-324,-377,-363,-617,-615,-729,-708,-751,-735,-1433,-710,-936,-895,-984,-984,-1002,-986,-969,-941,-1931,-1918,-1574,-1695,-3678,-3519,-29988,-29989]} 1. d4 {[%emt 0:00:09]} Nf6 {[%emt 0:00:06]} 2. c4 {[%emt 0:00:06]} g6 {[%emt 0:00:04]} 3. Nc3 {[%emt 0:01:55]} Bg7 {[%emt 0:00:06]} 4. e4 {[%emt 0:00:13]} d6 {[%emt 0:00:05]} 5. h3 {[%emt 0:00:34]} e5 {[%emt 0:00:07]} 6. d5 {[%emt 0:01:33]} a5 {[%emt 0:00:06]} 7. Be3 {[%emt 0:02:28]} Na6 {[%emt 0:00:04]} 8. Nf3 {[%emt 0:02:10]} Bd7 {[%emt 0:00:07]} 9. g4 {[%emt 0:01:11][%cal Bg2g4,Bg4g5][%mdl 32]} Nc5 {[%emt 0:06:01]} 10. Nd2 {[%emt 0:00:22]} h5 {[%emt 0:00:54]} 11. g5 {[%emt 0:16:52]} Nh7 {[%emt 0:01:27]} 12. Rg1 {[%emt 0:00:25]} O-O {[%emt 0:01:34]} 13. h4 {[%emt 0:04:55]} (13. Qe2 $14) 13... Kh8 {[%emt 0:03:20]} (13... f6 $1 $11) 14. Be2 $16 {[%emt 0:03:59]} Be8 {[%emt 0:02:13]} 15. Qc2 {[%emt 0:03:07]} a4 {[%emt 0:10:24]} 16. Nf1 {[%emt 0:06:58]} f6 {[%emt 0:03:20]} 17. O-O-O {[%emt 0:03:29]} (17. Nh2 $14) 17... fxg5 $11 {[%emt 0:01:03]} 18. hxg5 {[%emt 0:00:16]} a3 {[%emt 0:00:24]} (18... Rf4 $5) 19. b3 {[%emt 0:10:02]} (19. b4 $5 Na4 20. Nb5 $16) 19... Rf4 $1 {[%emt 0:01:17][%cal Oh7g5]} 20. Qd2 {[%emt 0:13:34]} (20. Nd2 $11) 20... Nxg5 $17 {[%emt 0:02:50] Black is more active.} (20... Nxe4 $6 21. Nxe4 Rxe4 22. f3 $11) 21. Ng3 {[%emt 0:03:46]} (21. Qc2 $17) 21... Qf6 {[%emt 0:22:44][%cal Oh5h4]} (21... Ngxe4 22. Ngxe4 Nxe4 23. Nxe4 Rxe4 24. Bd3 Rxe3 25. fxe3 $11) 22. Rg2 {[%emt 0:03:10] [#]} (22. Kc2 $17 {is a better defense.}) 22... h4 $1 $19 {[%emt 0:01:22]} 23. Rh1 {[%emt 0:04:32] [#]} (23. Rh2 Kg8) 23... Kg8 $1 {[%emt 0:04:29]} 24. Rxh4 {[%emt 0:02:58]} Rxh4 {[%emt 0:00:23]} 25. Bxg5 {[%emt 0:00:32] [#]} Qxg5 $3 {[%emt 0:00:11][%mdl 512]} 26. Qxg5 {[%emt 0:00:30]} Bh6 {[%emt 0:00:06]} 27. Qxh6 {[%emt 0:03:02]} Rxh6 {[%emt 0:00:06]} 28. Kc2 {[%emt 0:00:21]} Na6 {[%emt 0:00:47]} 29. Bg4 {[%emt 0:00:50]} Nb4+ {[%emt 0:00:23]} 30. Kd2 {[%emt 0:00:10]} Kf7 {[%emt 0:00:34]} 31. Nge2 {[%emt 0:00:34]} Ke7 {[%emt 0:05:02]} 32. f4 {[%emt 0:01:43]} exf4 {[%emt 0:00:12]} 33. Nxf4 {[%emt 0:00:17]} Bf7 {[%emt 0:00:15]} 34. Ke3 {[%emt 0:01:42]} Rah8 {[%emt 0:02:53]} 35. Be2 {[%emt 0:02:16]} c6 {[%emt 0:07:55]} 36. Nb1 $2 {[%emt 0:03:43]} (36. Kd2) 36... Rh1 {[%emt 0:02:16]} 37. Nc3 {[%emt 0:01:28]} Rc1 {[%emt 0:00:52]} 38. Nd1 {[%emt 0:01:18]} Nxa2 {[%emt 0:01:42]} 39. Kd2 {[%emt 0:00:52]} Rb1 {[%emt 0:01:34]} (39... Nb4 $142 40. Kxc1 a2 41. dxc6 a1=Q+ (41... a1=B 42. cxb7 Rb8 43. Nxg6+ Bxg6 44. Rxg6 $18) 42. Kd2 bxc6 (42... Nxc6 $2 43. c5 $19)) 40. Kc2 {[%emt 0:00:18]} Ra1 {[%emt 0:01:14]} 41. Nd3 {[%emt 0:31:12] Prevents Nb4+} cxd5 {[%emt 0:31:15]} 42. exd5 {[%emt 0:00:28] [#]} g5 $1 {[%emt 0:02:03]} 43. Kd2 {[%emt 0:00:00]} Bg6 {[%emt 0:00:00]} 44. Nf4 {[%emt 0:00:00]} gxf4 {[%emt 0:00:00]} 45. Rxg6 {[%emt 0:00:00]} Rh2 {[%emt 0:00:00] And now ...f3 would win.} 46. Re6+ {[%emt 0:00:00]} Kd7 {[%emt 0:00:00] ( -> ...f3)} 47. Rf6 {[%emt 0:00:00] [#]} Rxd1+ $1 {[%emt 0:00:00]} 0-1